Cogmind - Beta 15 *** ADVENTURER MODE // 2025.10.13 @ 16:03:21 Player: Haiko Result: Destroyed by DAS Turret with DAS Cannon Performance ------------- Evolutions (0) 0 Regions Visited (3) 600 Robots Destroyed (14) 70 Value Destroyed (121) 121 Prototype IDs (23) 460 Alien Tech Used (0) 0 Bonus (300) 300 TOTAL SCORE: 1551 Bonus ------- Aligned with FarCom 300 Cogmind --------- Core Integrity 0/250 Matter 199/300 Energy 99/100 System Corruption 5% Temperature Cool (0) Movement Core (50) Location -10/Exiles Parts ------- > --- POWER (1) -------- (None) > --- PROPULSION (2) --- (None) > --- UTILITY (2) ------ (None) > --- WEAPON (2) ------- (None) > --- INVENTORY (5) ---- XL Autogun Array Mining Claw Peak State ------------ > --- POWER ------------ Ion Engine > --- PROPULSION ------- Aluminum Leg Aluminum Leg > --- UTILITY ---------- Medium Storage Unit Sensor Array > --- WEAPON ----------- Guided Plasma Cannon Assault Rifle > --- INVENTORY -------- Structural Scanner Signal Interpreter EM Pulse Gun XL Autogun Array [Rating: 17] Favorites ----------- Power Ion Engine Engine Ion Engine Propulsion Aluminum Leg Leg Aluminum Leg Utility Small Storage Unit Device Sensor Array Storage Small Storage Unit Protection Utility Shielding Weapon Assault Rifle Energy Gun EM Pulse Gun Energy Cannon Guided Plasma Cannon Ballistic Gun Assault Rifle Special Weapon Mining Laser Slashing Weapon Mining Claw Build | -11 -10 -10 -10 ------- Run | Yrd Mat Min Exi Slots Evolved . | . . . . Power . | . . . . Propulsion . | . . . . Utility . | . . . . Weapon . | . . . . Parts Attached 16 | 8 5 1 2 Power 1 | 1 . . . Engine 1 | 1 . . . Core . | . . . . Reactor . | . . . . Propulsion 2 | 2 . . . Treads . | . . . . Leg 2 | 2 . . . Wheel . | . . . . Hover . | . . . . Flight . | . . . . Utility 6 | 2 2 1 1 Device 3 | 1 2 . . Storage 2 | 1 . . 1 Processor . | . . . . Hackware . | . . . . Protection 1 | . . 1 . Artifact . | . . . . Weapon 7 | 3 3 . 1 Energy Gun 3 | 1 2 . . Energy Cannon 1 | . . . 1 Ballistic Gun 1 | 1 . . . Ballistic Cannon . | . . . . Launcher . | . . . . Special Weapon 1 | 1 . . . Impact Weapon . | . . . . Slashing Weapon 1 | . 1 . . Piercing Weapon . | . . . . Special Melee Weapon . | . . . . Unidentified Prototypes . | . . . . Parts Lost 1 | . . . 1 Power . | . . . . Propulsion . | . . . . Utility . | . . . . Weapon 1 | . . . 1 Highest Loss Streak 1 | . . . 1 To Critical Strikes . | . . . . Average Backups 6 | 2 7 8 7 Power . | . . . . Propulsion . | . . . . Utility 4 | . 4 6 5 Weapon 1 | 1 1 2 1 Tool/Special . | . . . . Unused Backups 6 | . 3 . 3 Power 1 | . 1 . . Propulsion . | . . . . Utility 4 | . 2 . 2 Weapon 1 | . . . 1 Tool/Special . | . . . . Average Slot Usage (%) 98 | . 100 100 97 Engine 13 | . 14 14 13 Leg 27 | . 28 28 27 Device 13 | . 14 11 13 Storage 13 | . 14 14 13 Energy Gun 10 | . 5 14 13 Ballistic Gun 13 | . 14 14 13 Special Weapon 1 | . 3 . . Slashing Weapon 1 | . 4 . . Peak Build Rating 17 | 9 9 9 17 Average Rating 8 | 6 8 8 10 On Entrance 6 | . 9 8 9 Naked Turns 3 | . . . 3 Heaviest Build 20 | 14 15 15 20 Greatest Support 20 | 20 20 20 20 Greatest Overweight (x) 3 | 3 . . . Average Overweight (x) . | . . . . Largest Inventory Capacity 10 | 8 8 8 10 Average Capacity 8 | 7 8 8 9 Most Carried 10 | 5 8 8 10 Average Carried 7 | 3 7 8 8 Final Capacity 8 | 8 8 8 5 Final Carried 8 | 4 8 8 5 Class Distribution -------------------- 100% | Mutant Dominant Class ---------------- Mutant | -10/Materials Mutant | -10/Mines Mutant | -10/Exiles Resources | -11 -10 -10 -10 ----------- Run | Yrd Mat Min Exi Matter Collected 440 | 281 35 124 . Remotely . | . . . . Salvage Created 286 | 148 35 103 . Parts 30 | 8 8 14 . Haulers Intercepted . | . . . . Recyclers Shooed 2 | 1 1 . . Parts Field Recycled . | . . . . Retrieved Matter . | . . . . Parts Self-Destructed . | . . . . Prevented . | . . . . Kills | -11 -10 -10 -10 ------- Run | Yrd Mat Min Exi Combat Hostiles Destroyed 6 | . . 6 . Guns 6 | . . 6 . Classes Destroyed 4 | 2 1 1 . Builder 2 | . 2 . . Tunneler 5 | 4 . 1 . Recycler 1 | 1 . . . Swarmer 6 | . . 6 . Best Kill Streak 5 | 5 1 4 . Combat Bots Only 3 | . . 3 . Max Kills in Single Turn 1 | 1 1 1 . Gunslinging . | . . . . Exploded . | . . . . Melee . | . . . . Uniques/NPCs Destroyed . | . . . . Combat | -11 -10 -10 -10 -------- Run | Yrd Mat Min Exi Hostile Shots Fired 49 | . . 20 29 Missed 19 | . . 7 12 Hits 30 | . . 13 17 Projectile 30 | . . 13 17 Damage Taken 500 | . . 73 427 Core 269 | . . 13 256 Absorbed by Shields . | . . . . Ignored by Resistances 140 | . . 26 114 Core Remaining (%) 100 | 100 . . . Volleys Fired 46 | 17 21 8 . Largest 2 | 1 2 2 . Hottest 100 | 100 100 60 . Shots Fired 56 | 17 22 16 1 Gun 52 | 15 20 16 1 Cannon . | . . . . Launcher . | . . . . Special 4 | 2 2 . . Kinetic 42 | 15 19 8 . Thermal 4 | 2 2 . . Explosive . | . . . . Electromagnetic 10 | . 1 8 1 Robot Hit Streak 14 | 14 10 6 7 Robot Miss Streak 3 | 1 3 2 . Penetration Max . | . . . . Secondary Targets 2 | . . 2 . Max Gunslinging Chain 1 | . . 1 . Shots Hit Robots 40 | 14 15 10 1 Core Hits 16 | 6 3 7 . Critical Kills . | . . . . Critical Parts Destroyed 1 | 1 . . . Critical Strikes 2 | 1 . 1 . Destroy 1 | 1 . . . Corrupt 1 | . . 1 . Melee Attacks 2 | . 2 . . Impact . | . . . . Slashing 2 | . 2 . . Piercing . | . . . . Sneak Attacks . | . . . . Combat Hostiles . | . . . . Follow-up Attacks . | . . . . Damage Inflicted 531 | 181 205 145 . Guns 506 | 181 180 145 . Cannons . | . . . . Explosions . | . . . . Melee 25 | . 25 . . Ramming . | . . . . Kinetic 414 | 181 158 75 . Thermal . | . . . . Explosive . | . . . . Electromagnetic 92 | . 22 70 . Impact . | . . . . Slashing 25 | . 25 . . Piercing . | . . . . Highest Corruption 5 | . 1 1 5 Average Corruption 1 | . 1 1 1 Corruption Purged . | . . . . Corruption Blocked . | . . . . Effects 4 | . 2 . 2 Message Errors 1 | . 1 . . Energy Discharges 1 | . . . 1 Parts Rejected 1 | . 1 . . Misfires 1 | . . . 1 Overload Shots . | . . . . Overflow Damage . | . . . . Projectiles . | . . . . Explosions . | . . . . Melee . | . . . . Knockbacks . | . . . . Impact . | . . . . Kinetic . | . . . . Secondary . | . . . . Self-Inflicted Damage . | . . . . Shots . | . . . . Rammed . | . . . . Targets Rammed . | . . . . Kicked . | . . . . Crushed . | . . . . Highest Temperature 22 | 22 22 . 4 Average Temperature 10 | 11 11 . 3 Received Heat Transfer . | . . . . Siege Activations . | . . . . Martial Activations . | . . . . Shielding Activations . | . . . . Robots Disrupted . | . . . . Combat Hostiles . | . . . . Robots Corrupted . | . . . . Combat Hostiles . | . . . . Parts Fried . | . . . . Impact Corruptions . | . . . . Robots Melted . | . . . . Combat Hostiles . | . . . . Parts Melted . | . . . . Heat Transferred . | . . . . Parts Sabotaged . | . . . . Parts Stolen . | . . . . Parts Stripped . | . . . . Power Chain Reactions . | . . . . Alert | -11 -10 -10 -10 ------- Run | Yrd Mat Min Exi Maximum Alert Level . | . . . . Low Security (%) 100 | 100 100 100 . Level 1 . | . . . . Level 2 . | . . . . Level 3 . | . . . . Level 4 . | . . . . Level 5 . | . . . . High Security . | . . . . Max Security . | . . . . Peak Influence 115 | 10 9 115 . Initial . | . . . . Average 12 | 1 . 75 . Influence Increases 191 | 25 21 145 . Destroy 0b10 Robot/C 120 | . . 120 . Destroy 0b10 Robot/NC 40 | 25 10 5 . Destroy Leader 20 | . . 20 . Disable Machine 9 | . 9 . . Destroy Structure 2 | . 2 . . Influence Decreases 191 | 25 21 40 105 Entered New Map 105 | . . . 105 Time Decay 86 | 25 21 40 . Squads Dispatched . | . . . . Investigation . | . . . . Extermination . | . . . . Reinforcement . | . . . . Assault . | . . . . Garrison . | . . . . Intercept . | . . . . Searches Triggered . | . . . . Construction Impeded . | . . . . Haulers Reinforced . | . . . . Active Scanning Responses . | . . . . Cargo Convoy Interrupts . | . . . . Stealth | -11 -10 -10 -10 --------- Run | Yrd Mat Min Exi Distress Signals 1 | . . 1 . Communications Jammed . | . . . . Distress Signals . | . . . . Times Spotted 13 | . 2 6 5 Peak Tracking Total 12 | . 1 3 12 Tactical Retreats . | . . . . Traps | -11 -10 -10 -10 ------- Run | Yrd Mat Min Exi Traps Triggered 1 | . 1 . . Indirectly . | . . . . Trap Hack Attempts . | . . . . Triggered . | . . . . Disarmed . | . . . . Reprogrammed . | . . . . Reused . | . . . . Traps Extracted . | . . . . Installed . | . . . . Triggered . | . . . . Machines | -11 -10 -10 -10 ---------- Run | Yrd Mat Min Exi Machines Disabled 1 | . 1 . . Max in Single Turn 1 | . 1 . . Machines Repaired . | . . . . Machines Dismantled . | . . . . Machines Sabotaged . | . . . . Overloaded Fab Kills . | . . . . Hacking | -11 -10 -10 -10 --------- Run | Yrd Mat Min Exi Machines Accessed 5 | . 1 . 4 Terminals 1 | . 1 . . Fabricators . | . . . . Repair Stations . | . . . . Recycling Units . | . . . . Scanalyzers . | . . . . Garrison Access . | . . . . Total Hacks 30 | . 3 . 27 Successful 30 | . 3 . 27 Failed . | . . . . Catastrophic . | . . . . Database Lockouts . | . . . . Manual 4 | . 2 . 2 Terminals 3 | . 3 . . Fabricators . | . . . . Repair Stations . | . . . . Recycling Units . | . . . . Scanalyzers . | . . . . Garrison Access . | . . . . Terminal Hacks 30 | . 3 . 27 Record 27 | . 1 . 26 Locate Traps 1 | . 1 . . Zone Layout 1 | . 1 . . Proto ID Catalog 1 | . . . 1 Fabricator Hacks . | . . . . Repair Station Hacks . | . . . . Recycling Unit Hacks . | . . . . Scanalyzer . | . . . . Garrison Access Hacks . | . . . . Unauthorized Hacks . | . . . . Terminals . | . . . . Fabricators . | . . . . Repair Stations . | . . . . Recycling Units . | . . . . Scanalyzers . | . . . . Garrison Access . | . . . . Data Cores Recovered . | . . . . Used . | . . . . Hacking Detections 1 | . 1 . . Full Trace Events . | . . . . Feedback Events . | . . . . Feedback Blocked . | . . . . Robot Schematics Acquired . | . . . . Robots Built . | . . . . Authchips . | . . . . Time . | . . . . Total Robot Build Rating . | . . . . Part Schematics Acquired . | . . . . Parts Built . | . . . . Authchips . | . . . . Time . | . . . . Total Part Build Rating . | . . . . Parts Repaired . | . . . . Time . | . . . . Parts Recycled . | . . . . Recycled Matter . | . . . . Retrieved Matter . | . . . . Retrieved Components . | . . . . Parts Scanalyzed . | . . . . Part Schematics Acquired . | . . . . Parts Damaged . | . . . . Bothacking | -11 -10 -10 -10 ------------ Run | Yrd Mat Min Exi Used RIF Installer . | . . . . Robots Hacked . | . . . . Non-combat . | . . . . Combat . | . . . . Robot Hacks Applied . | . . . . Relay Couplers Released . | . . . . Fabnet Peak Effective % . | . . . . Robots Rewired . | . . . . Allies Hacked . | . . . . Hacks Repelled . | . . . . Allies | -11 -10 -10 -10 -------- Run | Yrd Mat Min Exi Total Allies . | . . . . Largest Group . | . . . . Highest-Rated Group . | . . . . Highest-Rated Ally . | . . . . Total Orders . | . . . . Ally Attacks . | . . . . Total Damage . | . . . . Kills . | . . . . Allies Corrupted . | . . . . Allies Melted . | . . . . Intel | -11 -10 -10 -10 ------- Run | Yrd Mat Min Exi Active Infowar (turns) 991 | 58 355 75 503 Sensors 417 | . 118 . 299 Terrain 398 | 58 61 75 204 Structural 176 | . 176 . . Robot Analysis Total . | . . . . Derelict Logs Recovered . | . . . . Drone Launches . | . . . . Drone Recoveries . | . . . . Exploration | -11 -10 -10 -10 ------------- Run | Yrd Mat Min Exi Turns Passed 1119 | 165 355 93 506 Spaces Moved 786 | 90 230 56 410 Core 12 | 7 . . 5 Treads . | . . . . Legs 774 | 83 230 56 405 Wheels . | . . . . Hover . | . . . . Flight . | . . . . Fastest Speed 50 | 50 120 120 50 Average Speed 119 | 122 120 120 119 Slowest Speed 200 | 200 120 120 120 Overloaded Moves . | . . . . Propulsion Burnouts . | . . . . Robots Hopped . | . . . . Potential Cave-ins . | . . . . Cave-ins Triggered . | . . . . Exploration Rate (%) 31 | 5 33 16 73 Regions Visited 3 Branch Regions 2 Pre-discovered Areas . | . . . . Known Exits Taken . | . . . . Unknown Exits Taken 3 | 1 1 1 . Scrap Searched 1 | . . 1 . Spaces Dug 4 | 2 2 . . Terrain Destroyed 4 | 2 2 . . Melee . | . . . . Projectile 4 | 2 2 . . AOE . | . . . . Terrain Rammed . | . . . . Walls Destroyed . | . . . . Machines Disabled . | . . . . Actions | -11 -10 -10 -10 --------- Run | Yrd Mat Min Exi Total 893 | 120 278 65 430 Wait 5 | . 5 . . Move 783 | 89 229 55 410 Hop . | . . . . Pick Up 21 | 5 9 . 7 Fast Attach 8 | 7 1 . . Attach 3 | . . . 3 Detach . | . . . . Swap 11 | 1 6 2 2 Drop 14 | 1 5 . 8 Fire 46 | 17 21 8 . Melee 2 | . 2 . . Ram . | . . . . Kick . | . . . . Crush . | . . . . Escape Stasis . | . . . . Rewire . | . . . . Trap . | . . . . Miscellaneous . | . . . . Route ------- -11/Scrapyard -10/Materials (discovered 2 exits: [*Min x2]) -10/Mines -10/Exiles (discovered 2 exits: [*Min x2]) History --------- Turn | Location | Event 19 | -11/Scrapyard | Discovered new exit (range 13) 166 | -11/Scrapyard | Entered Materials 231 | -10/Materials | Discovered new exit (range 18) 300 | -10/Materials | Build established: Mutant 381 | -10/Materials | Discovered new exit (range 11) 521 | -10/Materials | Entered Mines 549 | -10/Mines | Assembled infested the area 608 | -10/Mines | Deemed a non-threat by the Exiles lab entrance 608 | -10/Mines | Discovered new exit (range 5) 614 | -10/Mines | Entered Exiles 637 | -10/Exiles | Discovered new exit (range 15) 654 | -10/Exiles | Met 8R-AWN 680 | -10/Exiles | Met EX-HEX 726 | -10/Exiles | Met EX-BIN 743 | -10/Exiles | Aligned with FarCom system 744 | -10/Exiles | Given EX-Vault access code 809 | -10/Exiles | Opened EX-Vault 825 | -10/Exiles | Found XL Autogun Array 836 | -10/Exiles | Found Gui. Plasma Cannon 886 | -10/Exiles | Warned to stay clear of 0b10 Research branches 918 | -10/Exiles | Met EX-DEC 1015 | -10/Exiles | Discovered new exit (range 14) 1103 | -10/Exiles | Attacked by the Exiles 1115 | -10/Exiles | Core integrity fell below 50% 1117 | -10/Exiles | Released all parts (6) 1119 | -10/Exiles | Core integrity fell below 20% 1120 | -10/Exiles | Destroyed by DAS Turret with DAS Cannon Last Messages --------------- EX-DEC: Ah I see we have a visitor. One wrong move in here and I'll invert your atomic chain! 00920_ EX-DEC: "Oops, I hope HEX didn't hear that..." 00928_ Connecting with EX-Message Board... 01015_ EXIT=FOUND 01103_ System corrupted: FCS attempts to trigger EM Pulse Gun. 01103_ System corrupted: EM Pulse Gun misfires. 01103_ EXILES: Hostile robot within lab perimeter. Defensive protocols time, folks! 01110_ Assault Rifle destroyed. 01114_ Machine disabled. 01116_ Knocked back. 01117_ Released Aluminum Leg. 01117_ Released Ion Engine. 01117_ Released Aluminum Leg. 01117_ Released Sensor Array. 01117_ Released Med. Storage Unit. 01117_ Released EM Pulse Gun. 01119_ EX-BIN: "I just want to science!" 01119_ Machine disabled. Map ----- +----------------------------------------------------+ | #" ###?????????#"" ""#???????##" #### | | "" ##????????### ###??????##"" #??? | | "###"" ######???### ###?######"" #??? | | "#?##" """#####X# #"###""""""" ##?? | | ##??#" """""" " "" ##? | | ""###???#"# "" """ " ## | | ###?????#### " " | | ???????????### | | ?????????????### | | ???????????????## | | ????????????????## | | ?????????????????##" | | ??????????????????#""" """""" | | ?????????????????##" ######""" | | ?????????????????#"" ""##??#?#####""" | | ?????????????????#""" """##?????????##"" | | ?????????????????""" """##???????????#"" | | ?????????????????""" c ""#????????????#"" | | ????????????????#"" ###?####??????""" | | ????????????????#""" ##aa ###???? | | ?????????????????"" t """"?? | | ?????????????????#"" ?? | | ?????????????????#"""" c | | ??????????????????# a aa | | ??????????????????#" a ??? | | ??????????????????#"""" @ ""## ?????? | | ??????????????????#"" ""###????????? | | ??????????????????#" """"##??????????? | | ??????????????????#""" [ """#???????????? | | ??????????????????## !=! "##???????????? | | ???????????????????#"" *=% ##????????????? | | ???????????????????##""" !!!! ##?????????????? | | ????????????????????##"""" ! ##??????????????? | | ?????????????????????### % #???????????????? | | ???????????????????????##### ##???????????????? | | ???????????????????????????##% #????????????????? | | ????????????????????????????# % #????????????????? | | ????????????????????????????# #????????????????? | | ????????????????????????????# %#????????????????? | | ????????????????????????????# #????????????????? | | ????????????????????????????# #????????????????? | | ????????????????????????????# #????????????????? | | ????????????????????????????# #????????????????? | | ????????????????????????????# #????????????????? | | ????????????????????????????# #????????????????? | | ????????????????????????????# #????????????????? | | ????????????????????????????" "????????????????? | | ???????????????????????????? ????????????????? | | ??????????????????????????? ???????????????? | | ??????????????????????????? ???????????????? | +----------------------------------------------------+ Best States ------------- Heat Dissipation 25 Energy Generation 10 Energy Capacity 250 Matter Stores 300 Matter Capacity 300 Sight Range 16 Robot Scan Range 14 Terrain Scan Range 16 Terrain Scan Density 10 Resistance: KI 20 Resistance: TH 20 Resistance: EX 20 Resistance: EM 20 Resistance: I 20 Resistance: S 20 Resistance: P 20 Utility Shielding 33 Evasion (%) 55 Offensive Hacking 10 Item Schematics ----------------- None Robot Schematics ------------------ None Fabricated ------------ Nothing Repaired ---------- Nothing Alien Tech Used ----------------- None Achievements -------------- None Challenges ------------ None Game ------ Seed PotentialActiveDeconstructor Manual? 0 Play Time 00:21:16 Cumulative 9.0 hours Start 2025.10.13 @ 15:08:20 End 2025.10.13 @ 16:03:21 Sessions 1 Manual Loads 0 Difficulty Adventurer Special Mode None Game No. 10 Rogue 0 Adventurer 10 Explorer 0 Win Type - Total 0 Types 0/0/0/0/0/0/0/0/0/0 Lore% 10 Gallery% 13 Achievement% 14 Wizard Run 0 Options --------- Layout 0 ASCII 0 Keyboard 0 Movement Arrows Keybinds 0 Fullscreen 1 Font 18/X11 Map View 38x25 Zoom Use 100% Tactical HUD 1 Map Filters NONE Filters NONE Steam 1 RUN: 045d304b-13ff-4328-9019-51197303306a